bitfinex/quotes_BTCUSD_20220103
["timestamp","ask_amount","ask_price","bid_price","bid_amount"]
[1641206471513,0.0001278,47180.0,47179.0,0.75977877]
[1641206471714,0.0001278,47180.0,47179.0,0.70977877]
[1641206472714,0.0001278,47180.0,47179.0,0.75977877]
[1641206473372,0.0001278,47180.0,47179.0,1.21932445]
[1641206473563,0.0001278,47180.0,47179.0,1.31932445]
[1641206473963,0.0001278,47180.0,47179.0,1.1133437]
[1641206474164,0.0001278,47180.0,47179.0,0.75977877]
[1641206474363,0.0001278,47180.0,47179.0,0.70977877]
[1641206475567,0.0001278,47180.0,47179.0,0.75977877]
[1641206477497,0.00851056,47190.0,47181.0,0.26522019]
[1641206477698,0.05299625,47187.0,47183.0,0.052996]
[1641206477896,7.303e-05,47184.0,47183.0,0.45640352]
[1641206478096,7.303e-05,47184.0,47183.0,0.90196752]
[1641206478294,0.00012781,47187.0,47183.0,0.90196752]
[1641206478595,0.055292,47189.0,47186.0,0.1]
[1641206478995,0.00012781,47187.0,47186.0,0.202992]
[1641206479196,0.00012781,47187.0,47186.0,0.15]
[1641206480201,0.00012781,47187.0,47186.0,0.1]
[1641206480397,0.00012781,47187.0,47185.0,0.105983]
[1641206480865,0.008734,47188.0,47185.0,0.105983]
[1641206480866,0.00010955,47186.0,47185.0,0.105983]
[1641206483356,0.00020888,47186.0,47185.0,0.105983]
[1641206484700,0.00020888,47186.0,47185.0,0.49804266]
[1641206484898,0.00020888,47186.0,47185.0,0.84360666]
[1641206485902,0.00020888,47186.0,47185.0,0.155983]
[1641206486102,0.00020888,47186.0,47185.0,0.105983]
[1641206489946,0.3449879,47186.0,47185.0,0.105983]
[1641206490147,0.3449879,47186.0,47184.0,0.105983]
[1641206490148,0.7910559,47186.0,47184.0,0.105983]
[1641206490345,0.165974,47185.0,47184.0,0.105983]
[1641206490543,0.21356529,47185.0,47184.0,0.105983]
[1641206490948,0.5590013,47185.0,47184.0,0.105983]
[1641206492405,0.6120033,47185.0,47183.0,0.053002]
[1641206492608,0.66500479,47185.0,47183.0,0.053002]
[1641206492806,7.303e-05,47184.0,47183.0,0.053002]
[1641206493005,0.04757303,47184.0,47183.0,0.153002]
[1641206494006,0.04767073,47184.0,47183.0,0.153002]
[1641206495508,0.39541109,47184.0,47183.0,0.1]
[1641206495707,0.50141809,47184.0,47183.0,0.1]
[1641206495952,0.84678409,47184.0,47179.0,0.21]
[1641206496151,0.30528414,47181.0,47179.0,0.21]
[1641206496549,0.30528414,47181.0,47180.0,0.1]
[1641206497350,0.3582892,47181.0,47180.0,0.1]
[1641206497751,0.4112912,47181.0,47180.0,0.1]
[1641206498752,0.4112912,47181.0,47179.0,0.263005]
[1641206498955,0.4112912,47181.0,47180.0,0.1]
[1641206500391,0.4112912,47181.0,47179.0,0.263005]
[1641206500792,0.10600706,47181.0,47179.0,0.263005]
[1641206501198,0.10600706,47181.0,47180.0,0.1]
[1641206501696,0.10600706,47181.0,47179.0,0.263005]
[1641206502094,0.10600706,47181.0,47180.0,0.1]
[1641206504442,0.10610231,47181.0,47180.0,0.1]
[1641206505243,0.10610231,47181.0,47179.0,0.263005]
[1641206505443,0.10610231,47181.0,47179.0,0.363005]
[1641206507316,0.10610231,47181.0,47179.0,0.31]
[1641206508718,0.15610231,47181.0,47179.0,0.31]
[1641206508922,0.10610231,47181.0,47179.0,0.31]
[1641206509318,0.15610231,47181.0,47179.0,0.31]
[1641206513158,0.15610231,47181.0,47179.0,0.21]
[1641206515801,0.10610231,47181.0,47179.0,0.21]
[1641206516605,0.0475,47180.0,47179.0,0.21]
[1641206525008,0.0975,47180.0,47179.0,0.21]
[1641206527557,0.09580587,47180.0,47179.0,0.21]
[1641206530308,0.09580587,47180.0,47179.0,0.31]
[1641206531206,0.0475,47180.0,47179.0,0.31]
[1641206541768,0.0475,47180.0,47179.0,0.29894359]
[1641206543972,9.525e-05,47181.0,47180.0,0.04743765]
[1641206544173,9.525e-05,47181.0,47180.0,0.39280365]
[1641206544818,9.525e-05,47181.0,47180.0,0.72327729]
[1641206546021,9.525e-05,47181.0,47180.0,1.10936657]
[1641206546822,9.525e-05,47181.0,47180.0,1.25436657]
[1641206547023,9.525e-05,47181.0,47180.0,1.6760165]
[1641206550061,9.525e-05,47181.0,47180.0,2.0960165]
[1641206550262,9.525e-05,47181.0,47180.0,2.04857885]
[1641206550967,9.525e-05,47181.0,47180.0,1.90357885]
[1641206551264,9.525e-05,47181.0,47180.0,1.48192892]
[1641206551961,9.525e-05,47181.0,47180.0,1.53192892]
[1641206553210,9.525e-05,47181.0,47180.0,1.7145665]
[1641206553511,9.525e-05,47181.0,47180.0,1.32847722]
[1641206553707,9.525e-05,47181.0,47180.0,1.27847722]
[1641206555309,9.525e-05,47181.0,47180.0,1.70881947]
[1641206557067,9.525e-05,47181.0,47180.0,1.60881947]
[1641206559168,9.525e-05,47181.0,47180.0,1.70881947]
[1641206559367,9.525e-05,47181.0,47180.0,2.30644172]
[1641206563207,9.525e-05,47181.0,47180.0,2.34920372]
[1641206564178,9.525e-05,47181.0,47180.0,2.24920372]
[1641206564575,9.525e-05,47181.0,47180.0,2.65158147]
[1641206564776,9.525e-05,47181.0,47180.0,2.17847722]
[1641206566176,9.525e-05,47181.0,47180.0,1.84800358]
[1641206580880,9.525e-05,47181.0,47180.0,1.90099358]
[1641206585125,9.525e-05,47181.0,47180.0,1.95099358]
[1641206586563,5.25e-06,47181.0,47180.0,2.10099358]
[1641206586961,5.25e-06,47181.0,47180.0,2.14849358]
[1641206587662,5.25e-06,47181.0,47180.0,4.47548218]
[1641206587861,0.008734,47188.0,47180.0,4.47548218]
[1641206587862,0.00373925,47188.0,47180.0,4.47548218]
[1641206588060,0.00373925,47188.0,47187.0,0.1]
[1641206588361,0.00373925,47188.0,47187.0,0.590366]
[1641206588561,0.0002,47191.0,47188.0,0.58500857]
[1641206588762,0.0002,47191.0,47190.0,0.1]
[1641206588961,0.0002,47191.0,47190.0,0.81307801]
[1641206589264,0.0002,47191.0,47190.0,0.95807801]
[1641206597123,0.0002,47191.0,47190.0,1.16807801]
[1641206597527,0.77561678,47205.0,47199.0,0.052972]
[1641206597728,0.05,47205.0,47197.0,0.105943]
[1641206597928,0.28821862,47206.0,47197.0,0.105943]
[1641206598226,0.05343045,47205.0,47202.0,0.1]
[1641206598528,0.28821862,47206.0,47204.0,0.00125271]
[1641206598529,0.0003,47206.0,47204.0,0.00125271]
[1641206598726,0.0003,47206.0,47205.0,0.345366]
[1641206598927,0.0003,47206.0,47205.0,0.445366]
[1641206599926,0.0003,47206.0,47205.0,0.82074108]
[1641206600227,0.0003,47206.0,47205.0,0.445366]
[1641206600890,0.0003,47206.0,47205.0,0.80106297]
[1641206601076,0.0003,47206.0,47205.0,0.445366]
[1641206601576,0.0003,47206.0,47205.0,0.82074108]
[1641206601776,0.0003,47206.0,47205.0,0.445366]
[1641206603779,0.0003,47206.0,47205.0,0.820845]
[1641206605410,0.0003,47206.0,47205.0,0.445366]
[1641206605816,0.0002,47212.0,47205.0,0.445366]
[1641206606014,0.30009284,47220.0,47211.0,0.1]
[1641206606213,0.35009284,47220.0,47215.0,0.1]
[1641206606415,0.30832729,47218.0,47215.0,0.1]
[1641206606613,0.164757,47217.0,47215.0,0.1]
[1641206606812,0.00067554,47217.0,47215.0,0.1]
[1641206607011,0.00067554,47217.0,47209.0,0.33628351]
[1641206607211,0.00067554,47217.0,47215.0,0.1]
[1641206607512,0.00067554,47217.0,47215.0,0.15296]
[1641206608112,0.05363754,47217.0,47209.0,0.31]
[1641206608573,0.05363754,47217.0,47212.0,0.052962]
[1641206609172,0.33181269,47217.0,47212.0,0.052962]
[1641206610880,0.34966155,47216.0,47209.0,0.21]
[1641206611075,0.05297,47213.0,47209.0,0.21]
[1641206611276,0.7883352,47212.0,47209.0,0.21]
[1641206611475,0.78891945,47212.0,47209.0,0.21]
[1641206611676,0.000566,47211.0,47209.0,0.21]
[1641206611875,0.5079927,47210.0,47209.0,0.21]
[1641206612132,0.55854044,47210.0,47209.0,0.21]
[1641206612532,0.90160728,47210.0,47209.0,0.21]
[1641206612930,1.00160728,47210.0,47209.0,0.21]
[1641206614530,1.59580728,47210.0,47209.0,0.21]
[1641206614730,1.25274044,47210.0,47209.0,0.21]
[1641206614933,1.30274044,47210.0,47209.0,0.21]
[1641206615991,1.25274044,47210.0,47209.0,0.21]
[1641206616785,1.2528507,47210.0,47209.0,0.21]
[1641206619193,1.3028507,47210.0,47209.0,0.21]
[1641206619392,1.3028507,47210.0,47201.0,0.01660117]
[1641206619393,2.81958968,47210.0,47201.0,0.01660117]
[1641206619635,0.87704931,47202.0,47201.0,0.01660117]
[1641206619836,2.071147,47202.0,47201.0,1.17e-06]
[1641206620040,2.22154867,47202.0,47201.0,1.17e-06]
[1641206620335,0.32974246,47190.0,47183.0,0.00128125]
[1641206620536,0.0475,47189.0,47178.0,0.69514729]
[1641206620735,0.052997,47185.0,47178.0,0.59514729]
[1641206620936,0.0475,47185.0,47182.0,0.1]
[1641206621138,7.303e-05,47184.0,47183.0,0.345366]
[1641206621535,7.303e-05,47184.0,47183.0,0.65955541]
[1641206624783,7.303e-05,47184.0,47183.0,0.69834573]
[1641206625189,7.303e-05,47184.0,47183.0,0.345366]
[1641206625386,7.303e-05,47184.0,47182.0,0.052996]
[1641206625886,0.4411515,47184.0,47182.0,0.052996]
[1641206627128,0.4411515,47184.0,47182.0,0.152996]
[1641206627328,0.4411515,47184.0,47182.0,0.052996]
[1641206627531,8.863e-05,47183.0,47182.0,0.262996]
[1641206627728,0.04758863,47183.0,47182.0,0.262996]
[1641206628331,0.39272737,47183.0,47182.0,0.21]
[1641206628529,0.04758863,47183.0,47182.0,0.21]
[1641206629233,0.39295463,47183.0,47182.0,0.21]
[1641206629435,0.73661943,47183.0,47182.0,0.31]
[1641206629632,0.04758863,47183.0,47182.0,0.31]
[1641206630231,0.04758863,47183.0,47182.0,0.655366]
[1641206631281,8.863e-05,47183.0,47182.0,0.655366]
[1641206631881,8.863e-05,47183.0,47182.0,0.21]
[1641206632282,8.863e-05,47183.0,47182.0,0.31]
[1641206633181,8.863e-05,47183.0,47182.0,0.21]
[1641206636827,8.863e-05,47183.0,47182.0,0.31]
[1641206637323,0.35218571,47183.0,47182.0,0.21]
[1641206637923,0.05008863,47183.0,47182.0,0.21]
[1641206638373,8.863e-05,47183.0,47182.0,0.21]
[1641206641772,0.03766166,47185.0,47182.0,0.21]
[1641206641977,0.03766166,47185.0,47184.0,0.1]
[1641206644846,0.03766166,47185.0,47182.0,0.21]
[1641206645046,0.052998,47184.0,47182.0,0.21]
[1641206645749,0.052998,47184.0,47183.0,0.1]
[1641206646167,0.052998,47184.0,47182.0,0.21]
[1641206647180,0.102998,47184.0,47182.0,0.21]
[1641206647369,0.052998,47184.0,47182.0,0.21]
[1641206647769,0.052998,47184.0,47182.0,0.31]
[1641206647972,0.052998,47184.0,47182.0,0.21]
[1641206648573,8.057e-05,47183.0,47182.0,0.21]
[1641206649476,8.057e-05,47183.0,47182.0,0.262996]
[1641206658523,8.057e-05,47183.0,47182.0,0.608362]
[1641206658925,8.057e-05,47183.0,47182.0,0.262996]
[1641206668033,0.09758057,47183.0,47182.0,0.21]
[1641206668225,1.06996219,47183.0,47182.0,0.21]
[1641206668474,1.41532819,47183.0,47182.0,0.21]
[1641206668774,1.40024323,47183.0,47182.0,0.21]
[1641206669575,1.39897655,47183.0,47182.0,0.21]
[1641206671176,1.29897655,47183.0,47182.0,0.31]
[1641206671577,1.29884498,47183.0,47182.0,0.31]
[1641206672318,1.29884498,47183.0,47182.0,0.21]
[1641206672518,1.29884498,47183.0,47182.0,0.31]
[1641206673123,1.29884498,47183.0,47182.0,0.21]
[1641206674226,0.04758057,47183.0,47182.0,0.21]
[1641206674428,0.04758057,47183.0,47182.0,0.89440468]
[1641206674625,8.057e-05,47183.0,47182.0,0.555366]
[1641206675890,8.057e-05,47183.0,47182.0,0.605366]
[1641206676483,8.057e-05,47183.0,47182.0,0.94540269]
[1641206677485,8.057e-05,47183.0,47182.0,0.98330318]
[1641206677888,8.057e-05,47183.0,47182.0,0.93330318]
[1641206678289,8.057e-05,47183.0,47182.0,1.21445229]
[1641206678686,8.057e-05,47183.0,47182.0,1.32445229]
[1641206679186,8.057e-05,47183.0,47182.0,0.97908629]
[1641206680418,8.057e-05,47183.0,47182.0,0.69793718]
[1641206681419,8.057e-05,47183.0,47182.0,0.35790049]
[1641206683878,8.057e-05,47183.0,47182.0,0.32]
[1641206687142,8.057e-05,47183.0,47182.0,1.02784815]
[1641206687344,8.057e-05,47183.0,47182.0,0.665366]
[1641206688039,8.057e-05,47183.0,47182.0,0.94837575]
[1641206689241,8.057e-05,47183.0,47182.0,1.29788871]
[1641206690876,8.057e-05,47183.0,47182.0,1.06487896]
[1641206693074,8.057e-05,47183.0,47182.0,0.715366]
[1641206697124,8.057e-05,47183.0,47182.0,0.37]
[1641206697623,0.0475,47190.0,47182.0,0.37]
[1641206697822,0.0475,47190.0,47188.0,0.1]
[1641206698123,0.04760955,47190.0,47188.0,0.1]
[1641206698380,0.10060355,47190.0,47188.0,0.1]
[1641206698582,0.15060355,47190.0,47188.0,0.1]
[1641206700083,8.498e-05,47189.0,47188.0,0.1]
[1641206701282,8.498e-05,47189.0,47187.0,0.052994]
[1641206701485,8.498e-05,47189.0,47188.0,0.1]
[1641206702341,0.68970849,47189.0,47188.0,0.1]
[1641206702541,0.34545098,47189.0,47187.0,0.052994]
[1641206703241,0.61057208,47189.0,47187.0,0.052994]
[1641206703641,0.34545098,47189.0,47187.0,0.052994]
[1641206704740,0.34545098,47189.0,47183.0,0.27020463]
[1641206704943,1.20781837,47182.0,47180.0,0.3137711]
[1641206705142,1.20781837,47182.0,47180.0,0.3667628]
[1641206705342,1.20781837,47182.0,47180.0,0.06129067]
[1641206705641,1.206615,47182.0,47180.0,0.11428267]
[1641206706299,1.206615,47182.0,47180.0,0.1589757]
[1641206706901,1.206615,47182.0,47181.0,0.26249367]
[1641206708201,1.206615,47182.0,47180.0,0.102992]
[1641206708601,1.20669426,47182.0,47180.0,0.052992]
[1641206709305,1.20669426,47182.0,47180.0,0.105984]
[1641206709502,1.20669426,47182.0,47181.0,0.34812276]
[1641206713031,1.20669426,47182.0,47181.0,0.67329977]
[1641206713993,1.20669426,47182.0,47181.0,0.34812276]
[1641206714396,1.20669426,47182.0,47181.0,0.00275676]
[1641206747129,1.20669426,47182.0,47181.0,0.00132396]
[1641206747330,1.20669426,47182.0,47180.0,0.262992]
[1641206747530,1.20669426,47182.0,47181.0,0.345366]
[1641206747831,1.20669426,47182.0,47181.0,0.34668996]
[1641206749031,1.20669426,47182.0,47181.0,0.00132396]
[1641206750343,1.20669426,47182.0,47180.0,0.20278996]
[1641206750344,0.00125621,47181.0,47180.0,0.20278996]
[1641206750536,1.04770963,47182.0,47180.0,0.20278996]
[1641206750733,1.04770963,47182.0,47181.0,0.345366]
[1641206751194,1.04770963,47182.0,47180.0,0.20286299]
[1641206751691,1.04770963,47182.0,47181.0,0.345366]
[1641206751991,1.04770963,47182.0,47181.0,0.32182106]
[1641206754393,1.04770963,47182.0,47180.0,0.30885273]
[1641206754653,1.04770963,47182.0,47181.0,0.345366]
[1641206755053,1.04770963,47182.0,47180.0,0.25585873]
[1641206755253,1.04770963,47182.0,47181.0,0.345366]
[1641206755452,1.04770963,47182.0,47180.0,0.25585873]
[1641206755653,1.04770963,47182.0,47181.0,0.345366]
[1641206756054,1.04770963,47182.0,47180.0,0.25585873]
[1641206758158,1.10070963,47182.0,47180.0,0.20286299]
[1641206758595,1.04770963,47182.0,47180.0,0.20286299]
[1641206760199,1.04770963,47182.0,47180.0,0.25585915]
[1641206762947,0.05,47181.0,47180.0,0.25585915]
[1641206765551,0.05,47181.0,47180.0,0.20286299]
[1641206765993,1.04770963,47182.0,47181.0,1.63]
[1641206765994,0.86559024,47182.0,47181.0,1.63]
[1641206766206,0.158999,47193.0,47181.0,1.63]
[1641206766207,0.00829914,47194.0,47186.0,0.20183431]
[1641206766396,0.00829914,47194.0,47187.0,0.4201458]
[1641206766597,0.00829914,47194.0,47193.0,0.00128724]
[1641206766795,0.00829914,47194.0,47193.0,0.34665324]
[1641206766994,0.00848172,47194.0,47193.0,1.73057511]
[1641206767194,0.00848172,47194.0,47193.0,1.87557511]
[1641206767596,0.00848172,47194.0,47193.0,2.04735132]
[1641206767794,0.008533,47195.0,47193.0,2.04735132]
[1641206767994,0.008533,47195.0,47194.0,0.71700124]
[1641206768193,0.9776,47212.0,47194.0,0.75100745]
[1641206768395,0.9776,47212.0,47194.0,2.31341682]
[1641206768595,0.00031039,47211.0,47205.0,0.32720623]
[1641206768798,0.00031039,47211.0,47206.0,0.052964]
[1641206768998,0.00029213,47210.0,47206.0,0.052964]
[1641206769395,0.00027387,47209.0,47206.0,0.052964]
[1641206769952,0.00025561,47208.0,47207.0,0.10592631]
[1641206770350,0.00025561,47208.0,47207.0,0.25092631]
[1641206770551,0.00025561,47208.0,47207.0,0.30388831]
[1641206770750,0.00025561,47208.0,47207.0,1.00016715]
[1641206771851,0.00025561,47208.0,47207.0,4.24960112]
[1641206772451,0.00025561,47208.0,47207.0,4.52412802]
[1641206772653,0.008534,47212.0,47208.0,1.0]
[1641206772853,0.008534,47212.0,47211.0,0.345366]
[1641206773055,0.008534,47212.0,47211.0,1.07428872]
[1641206773254,0.0001,47214.0,47211.0,1.07428872]
[1641206773498,0.0001,47214.0,47213.0,0.145]
[1641206773695,0.0001,47214.0,47213.0,0.92016993]
[1641206773900,0.0001,47214.0,47213.0,1.32999657]
[1641206774105,0.0001,47214.0,47213.0,1.27999657]
[1641206774296,0.0001,47214.0,47213.0,1.42999657]
[1641206774495,0.008533,47214.0,47213.0,1.42999657]
[1641206774897,0.008533,47214.0,47213.0,1.43120279]
[1641206775098,0.0002,47217.0,47215.0,0.34736631]
[1641206775295,0.0002,47217.0,47216.0,0.392866]
[1641206775499,0.0001,47220.0,47216.0,0.687866]
[1641206775696,0.0001,47220.0,47216.0,0.542866]
[1641206775897,0.00010955,47218.0,47217.0,0.00124609]
[1641206776096,0.0001,47224.0,47218.0,0.04134609]
[1641206776295,0.0001,47224.0,47219.0,0.392866]
[1641206776503,0.0001,47224.0,47220.0,0.0475]
[1641206776695,0.0001,47224.0,47220.0,0.392866]
[1641206776897,0.0001,47224.0,47222.0,0.24744073]
[1641206777157,0.0023,47229.0,47223.0,0.76096478]
[1641206777359,0.0015,47229.0,47228.0,0.55]
[1641206777558,0.0002,47231.0,47228.0,1.59170978]
[1641206777756,0.0002,47231.0,47230.0,0.345366]
[1641206777955,0.0002,47231.0,47230.0,0.61834461]
[1641206778158,0.0103,47234.0,47230.0,0.61834461]
[1641206778159,0.0501,47232.0,47230.0,0.61834461]
[1641206778356,0.0499,47232.0,47231.0,1.150366]
[1641206778558,0.0001,47238.0,47231.0,1.05596478]
[1641206778756,0.00227539,47249.0,47231.0,1.05596478]
[1641206778757,0.0022,47239.0,47236.0,0.0812143]
[1641206778960,0.0022,47239.0,47238.0,0.0812143]
[1641206779260,0.0022,47239.0,47238.0,0.4738453]
[1641206779261,0.00234607,47239.0,47238.0,0.4738453]
[1641206779458,0.00234607,47239.0,47238.0,0.75072722]
[1641206779658,0.00246422,47239.0,47238.0,0.75072722]
[1641206779960,0.00227539,47249.0,47238.0,0.75072722]
[1641206779961,0.0003,47240.0,47238.0,0.75072722]
[1641206780160,0.0003,47240.0,47238.0,1.0376117]
[1641206780358,0.0003,47240.0,47239.0,0.08121946]
[1641206780560,0.0001,47241.0,47239.0,0.47385046]
[1641206780762,0.0001,47241.0,47240.0,0.07552918]
[1641206780985,0.0001,47241.0,47240.0,0.42066018]
[1641206781489,0.0001,47241.0,47239.0,0.05292493]
[1641206781685,0.00857497,47240.0,47239.0,0.02263122]
[1641206782690,0.00857497,47240.0,47236.0,0.00828077]
[1641206782889,0.16575,47237.0,47236.0,0.00828077]
[1641206783088,0.69110611,47237.0,47236.0,8.077e-05]
[1641206783290,0.69110611,47237.0,47219.0,0.00124365]
[1641206783291,0.26499698,47228.0,47222.0,0.052947]
[1641206783487,0.31499698,47228.0,47222.0,0.052947]
[1641206783687,0.31499698,47228.0,47225.0,0.00025561]
[1641206783889,0.10499698,47228.0,47225.0,0.00025561]
[1641206784090,0.0475,47227.0,47225.0,0.00025561]
[1641206784732,0.0475,47227.0,47220.0,0.0003469]
[1641206784934,0.0475,47227.0,47224.0,0.10588783]
[1641206785132,0.0475,47227.0,47225.0,0.05294387]
[1641206785332,0.0475,47227.0,47226.0,0.345131]
[1641206785532,0.0475,47227.0,47226.0,0.00023736]
[1641206787136,0.27467955,47233.0,47226.0,0.00023736]
[1641206787333,0.27467955,47233.0,47229.0,0.05294034]
[1641206787735,0.27467955,47233.0,47230.0,0.00016433]
[1641206788135,0.32467955,47233.0,47230.0,0.00016433]
[1641206788393,0.32467955,47233.0,47229.0,0.00018258]
[1641206789695,0.345131,47232.0,47229.0,0.00018258]
[1641206789991,0.6758945,47232.0,47229.0,0.00018258]
[1641206790190,0.68277543,47232.0,47229.0,0.00018258]
[1641206790390,0.6791081,47232.0,47229.0,0.00018258]
[1641206791193,0.6791081,47232.0,47227.0,0.0002191]
[1641206791693,0.6791081,47232.0,47223.0,0.09268888]
[1641206792140,0.052945,47229.0,47224.0,0.10588997]
[1641206792740,9.129e-05,47231.0,47224.0,0.10588997]
[1641206793144,0.008534,47229.0,47226.0,0.05294478]
[1641206794441,0.008534,47229.0,47226.0,0.10588478]
[1641206794742,0.008534,47229.0,47226.0,0.26294478]
[1641206797505,0.008534,47229.0,47226.0,0.31588478]
[1641206797700,0.008534,47229.0,47226.0,0.26294478]
[1641206797902,0.061477,47229.0,47226.0,0.26294478]
[1641206798899,0.008534,47229.0,47226.0,0.26294478]
[1641206799301,0.061475,47229.0,47226.0,0.26294478]
[1641206800751,0.34402051,47228.0,47226.0,0.26294478]
[1641206801052,0.345131,47227.0,47226.0,0.26294478]
[1641206801452,0.05009844,47228.0,47226.0,0.26294478]
[1641206801650,9.844e-05,47228.0,47226.0,0.26294478]
[1641206801850,0.33355377,47228.0,47226.0,0.26294478]
[1641206802051,9.844e-05,47228.0,47226.0,0.26294478]
[1641206802853,0.345131,47227.0,47226.0,0.26294478]
[1641206804807,0.72510555,47227.0,47226.0,0.21]
[1641206805012,0.87510555,47227.0,47226.0,0.21]
[1641206805217,1.51930555,47227.0,47226.0,0.21]
[1641206805508,1.51930555,47227.0,47226.0,0.20142503]
[1641206805709,1.51930555,47227.0,47226.0,2.503e-05]
[1641206805908,0.105933,47225.0,47205.0,0.00121397]
[1641206806113,0.05,47214.0,47209.0,0.0529651]
[1641206806306,0.0475,47213.0,47209.0,0.0529651]
[1641206806708,0.0475,47213.0,47206.0,0.00036515]
[1641206806709,0.56296444,47212.0,47206.0,0.00036515]
[1641206806908,0.052973,47209.0,47206.0,0.00036515]
[1641206807164,0.38597817,47208.0,47206.0,0.00036515]
[1641206807364,0.69124285,47207.0,47204.0,0.00040167]
[1641206807567,0.45805342,47201.0,47200.0,0.0004747]
[1641206807769,0.45805342,47201.0,47198.0,0.00051122]
[1641206808167,0.0475,47203.0,47198.0,0.29951518]
[1641206808369,0.35355886,47208.0,47198.0,0.29951518]
[1641206808567,0.40652586,47208.0,47199.0,0.00049296]
[1641206808767,0.40652586,47208.0,47198.0,0.29820821]
[1641206808966,0.00014606,47207.0,47198.0,0.29820821]
[1641206809167,0.34485777,47202.0,47198.0,0.29820821]
[1641206809467,0.34485777,47202.0,47201.0,0.15889708]
[1641206809667,0.34485777,47202.0,47201.0,0.50402808]
[1641206810271,0.00012781,47206.0,47201.0,0.50402808]
[1641206810574,0.00010955,47205.0,47203.0,0.15889855]
[1641206810769,0.00010955,47205.0,47204.0,0.345131]
[1641206811003,0.0975,47208.0,47204.0,0.345131]
[1641206811403,0.00014606,47207.0,47203.0,0.21186355]
[1641206811599,0.00022697,47207.0,47204.0,0.345131]
[1641206811800,0.00012781,47206.0,47204.0,0.345131]
[1641206812198,0.00010955,47205.0,47204.0,0.345131]
[1641206814402,0.00010955,47205.0,47203.0,0.15889855]
[1641206814837,9.129e-05,47204.0,47203.0,0.15889855]
[1641206815037,9.129e-05,47204.0,47203.0,0.45106324]
[1641206815441,9.129e-05,47204.0,47203.0,0.79801134]
[1641206816239,9.129e-05,47204.0,47203.0,0.85097234]
[1641206816839,9.129e-05,47204.0,47203.0,1.06097234]
[1641206817040,9.129e-05,47204.0,47203.0,1.04097234]
[1641206817340,9.129e-05,47204.0,47203.0,0.64234054]
[1641206820088,9.129e-05,47204.0,47203.0,0.70324054]
[1641206822352,0.00017016,47204.0,47203.0,0.70324054]
[1641206822754,0.00017016,47204.0,47203.0,1.02050974]
[1641206823159,0.00017016,47204.0,47203.0,1.36775522]
[1641206823555,0.00017016,47204.0,47203.0,2.01050777]
[1641206824156,0.38128303,47219.0,47203.0,1.82119401]
[1641206824357,0.38128303,47219.0,47215.0,0.33764718]
[1641206824556,0.00023735,47217.0,47215.0,0.66199746]
[1641206824756,0.00023735,47217.0,47215.0,0.65712825]
[1641206824956,0.00021909,47216.0,47215.0,0.65803107]
[1641206825356,0.00021909,47216.0,47215.0,1.05611077]
[1641206826000,0.00021909,47216.0,47215.0,1.15735947]
[1641206826397,0.052938,47226.0,47224.0,0.00128742]
[1641206826598,0.00821279,47225.0,47224.0,0.12411442]
[1641206826798,0.00821279,47225.0,47224.0,0.79171051]
[1641206827597,0.00821279,47225.0,47224.0,0.93599299]
[1641206828001,0.00821279,47225.0,47224.0,3.70097457]
[1641206828198,0.0002191,47228.0,47224.0,3.70097457]
[1641206828404,0.052937,47227.0,47225.0,0.345131]
[1641206828599,0.05313784,47227.0,47226.0,0.052937]
[1641206828798,0.052937,47227.0,47226.0,0.398068]
[1641206829843,0.052937,47227.0,47226.0,0.345131]
[1641206830047,0.052937,47227.0,47225.0,0.1058739]
[1641206830343,0.00018258,47226.0,47225.0,0.1058739]
[1641206832949,0.00027222,47226.0,47218.0,0.43034019]
[1641206833149,0.05295,47223.0,47218.0,0.10589527]
[1641206833606,0.05295,47223.0,47216.0,0.00124562]
[1641206833607,0.42402925,47219.0,47216.0,0.00124562]
[1641206833804,0.42402925,47219.0,47217.0,0.345153]
[1641206834304,0.47698025,47219.0,47217.0,0.345153]
[1641206834714,0.052951,47219.0,47217.0,0.345153]
[1641206835903,0.052951,47219.0,47217.0,0.67246041]
[1641206837148,0.63936916,47222.0,47217.0,0.73366041]
[1641206837149,0.052946,47221.0,47217.0,0.73366041]
[1641206837349,0.052946,47221.0,47218.0,0.052946]
[1641206837552,7.304e-05,47220.0,47219.0,0.31968664]
[1641206837949,7.304e-05,47220.0,47219.0,0.41968664]
[1641206838549,7.304e-05,47220.0,47219.0,0.152944]
[1641206839151,7.304e-05,47220.0,47219.0,0.052944]
[1641206839550,7.304e-05,47220.0,47218.0,0.05294501]
[1641206839750,7.304e-05,47220.0,47219.0,0.052947]
[1641206841402,7.304e-05,47220.0,47219.0,0.37503281]
[1641206841997,7.304e-05,47220.0,47219.0,0.47503281]
[1641206842197,7.304e-05,47220.0,47219.0,0.82018581]
[1641206843197,7.304e-05,47220.0,47219.0,0.4981]
[1641206843498,0.0001582,47220.0,47219.0,0.4981]
[1641206844100,0.0001582,47220.0,47219.0,0.3981]
[1641206844499,0.0001582,47220.0,47219.0,0.345153]
[1641206844953,0.0001582,47220.0,47218.0,0.05294501]
[1641206845152,0.87416208,47215.0,47213.0,0.0047]
[1641206845352,0.87416208,47215.0,47214.0,0.34536469]
[1641206845962,0.87416208,47215.0,47214.0,0.69731094]
[1641206846355,0.87416208,47215.0,47214.0,0.95719714]
[1641206846559,0.87416208,47215.0,47214.0,1.10719714]
[1641206847657,0.87416208,47215.0,47214.0,1.3144978]
[1641206848908,0.87416208,47215.0,47214.0,1.1044978]
[1641206849907,0.87416208,47215.0,47214.0,1.80253481]
[1641206851511,0.87416208,47215.0,47214.0,1.1044978]
[1641206852443,0.87416208,47215.0,47214.0,1.68552862]
[1641206853642,0.87416208,47215.0,47214.0,1.80253481]
[1641206853844,0.87416208,47215.0,47214.0,1.1044978]
[1641206854144,0.87424275,47215.0,47214.0,0.54561235]
[1641206855144,0.87424275,47215.0,47214.0,1.17416434]
[1641206856023,0.87424275,47215.0,47214.0,1.87123225]
[1641206856423,0.87424275,47215.0,47214.0,1.17416434]
[1641206856622,0.87424275,47215.0,47214.0,2.37660235]
[1641206857219,0.87424275,47215.0,47214.0,1.17416434]
[1641206857821,0.04843169,47215.0,47214.0,1.61653723]
[1641206858419,0.04843169,47215.0,47214.0,1.72653723]
[1641206858622,7.304e-05,47220.0,47215.0,0.602936]
[1641206858820,7.304e-05,47220.0,47219.0,1.12182554]
[1641206859021,7.304e-05,47220.0,47219.0,1.31932554]
[1641206860648,7.304e-05,47220.0,47219.0,1.37226054]
[1641206861850,7.304e-05,47220.0,47219.0,1.124537]
[1641206862254,7.304e-05,47220.0,47219.0,1.70428176]
[1641206863491,7.304e-05,47220.0,47219.0,1.124537]